bitfinex-derivatives/quotes_ETHF0:USTF0_20260118
["timestamp","ask_amount","ask_price","bid_price","bid_amount"]
[1768700445494,1.06176064,3305.6,3304.3,0.13802493]
[1768700445694,1.06176064,3305.5,3304.3,0.13802493]
[1768700445990,1.06176064,3305.4,3304.3,0.13802493]
[1768700446199,1.06176064,3305.3,3304.3,0.13802493]
[1768700446498,1.33301613,3305.2,3304.3,0.13802493]
[1768700446704,2.86385006,3305.7,3304.3,0.13802493]
[1768700447001,1.33302989,3305.6,3304.3,0.13802493]
[1768700447205,1.33302989,3305.5,3304.3,0.13802493]
[1768700447402,1.33302989,3305.4,3304.3,0.13802493]
[1768700447604,1.33302989,3305.3,3304.3,0.13802493]
[1768700447906,1.33302989,3305.2,3304.3,0.13802493]
[1768700448201,2.86385006,3305.7,3304.3,0.13802493]
[1768700448505,1.33313248,3305.6,3304.3,0.13802493]
[1768700448692,1.33313248,3305.5,3304.3,0.13802493]
[1768700448889,1.33313248,3305.5,3304.1,0.00296285]
[1768700448890,0.97755006,3304.9,3303.0,0.15142]
[1768700449095,1.33313248,3304.8,3303.5,0.97755006]
[1768700449394,1.33313248,3304.7,3303.5,0.97755006]
[1768700449594,0.97755006,3304.9,3303.5,0.97755006]
[1768700449802,1.33224192,3304.8,3303.5,0.97755006]
[1768700450003,1.33224192,3304.7,3303.5,0.98027514]
[1768700450202,0.97755006,3305.2,3303.5,0.98027514]
[1768700450503,1.33183293,3305.1,3303.5,0.98027514]
[1768700450705,1.33183293,3305.0,3303.5,0.98027514]
[1768700450906,1.33183293,3304.9,3303.7,0.97755006]
[1768700451096,1.33183293,3304.8,3303.7,0.97755006]
[1768700451297,0.27101474,3304.7,3303.7,0.97755006]
[1768700451500,0.97755006,3305.0,3303.7,0.97755006]
[1768700451702,1.33155435,3304.9,3303.7,0.97755006]
[1768700451902,1.33155435,3304.8,3303.7,0.97755006]
[1768700452102,0.27095765,3304.7,3303.7,0.97755006]
[1768700452397,0.97755006,3305.0,3303.7,0.97755006]
[1768700452599,1.33133299,3304.9,3303.7,0.97755006]
[1768700452798,1.33133299,3304.8,3303.7,0.97755006]
[1768700452999,0.97755006,3305.0,3303.7,0.97755006]
[1768700453196,1.33134346,3304.9,3303.7,0.97755006]
[1768700453402,1.33130961,3304.8,3303.7,0.97755006]
[1768700453706,0.97755006,3305.0,3303.7,0.97755006]
[1768700453907,1.3311752,3304.9,3303.7,0.97755006]
[1768700454206,1.3311752,3304.8,3303.7,1.11850749]
[1768700454407,0.97755006,3305.0,3303.7,1.11850749]
[1768700454604,1.33105704,3304.9,3303.7,1.11850749]
[1768700454806,1.33105704,3304.8,3303.7,1.11850749]
[1768700455105,0.97755006,3305.0,3303.7,1.11850749]
[1768700455306,1.33103525,3304.9,3303.7,1.11850749]
[1768700455511,0.27083664,3304.8,3303.7,1.11850749]
[1768700455808,0.97755006,3305.0,3303.7,1.11850749]
[1768700455996,1.33095286,3304.9,3303.7,1.11850749]
[1768700456197,1.33095286,3304.8,3303.7,1.11850749]
[1768700456392,0.97755006,3305.0,3303.7,1.11850749]
[1768700456594,1.33087774,3304.9,3303.7,1.11850749]
[1768700456804,0.27082114,3304.8,3303.7,1.11850749]
[1768700456996,0.97755006,3305.0,3303.7,1.11850749]
[1768700457318,1.735,3305.5,3304.3,0.97755006]
[1768700457607,1.33112259,3305.4,3304.3,0.97755006]
[1768700457806,1.33112259,3305.3,3304.3,0.97755006]
[1768700458006,1.33112259,3305.2,3304.3,0.97755006]
[1768700458206,1.735,3305.5,3304.3,0.97755006]
[1768700458411,1.33119677,3305.4,3304.3,0.97755006]
[1768700458605,1.78101656,3305.9,3304.6,1.11850749]
[1768700458806,1.33138741,3305.8,3304.7,0.14095743]
[1768700459005,1.33138741,3305.7,3304.7,0.14095743]
[1768700459308,1.33138741,3305.6,3304.7,0.14095743]
[1768700459511,1.735,3306.0,3304.7,0.14095743]
[1768700459710,1.33126252,3305.9,3304.7,0.14095743]
[1768700459908,1.33126252,3305.8,3304.7,0.14095743]
[1768700460106,1.33126252,3305.7,3304.7,0.14095743]
[1768700460305,1.33126252,3305.6,3304.7,0.14095743]
[1768700460496,1.735,3306.0,3304.7,0.14095743]
[1768700460701,1.3312506,3305.9,3304.7,0.14095743]
[1768700460902,1.3312506,3305.8,3304.7,0.14095743]
[1768700461104,1.3312506,3305.7,3304.7,0.14095743]
[1768700461399,1.3312506,3305.6,3304.7,0.14095743]
[1768700461606,1.735,3306.0,3304.7,0.14095743]
[1768700461806,1.33116849,3305.9,3304.7,0.14095743]
[1768700462004,1.33116849,3305.8,3304.7,0.14095743]
[1768700462205,1.33116849,3305.7,3304.7,0.14095743]
[1768700462406,1.33116849,3305.6,3304.7,0.14095743]
[1768700462706,1.735,3306.0,3304.7,0.14095743]
[1768700463005,1.33104434,3305.9,3304.7,0.14095743]
[1768700463316,1.33104434,3305.8,3304.7,0.14095743]
[1768700463506,1.33102197,3305.7,3304.7,0.14095743]
[1768700463814,1.33102197,3305.6,3304.7,0.14095743]
[1768700464115,1.33102197,3305.5,3304.7,0.14095743]
[1768700464316,1.735,3306.0,3304.7,0.14095743]
[1768700464501,1.33085635,3305.9,3304.7,0.14095743]
[1768700464819,1.33085635,3305.8,3304.7,0.14095743]
[1768700465009,1.33085635,3305.7,3304.7,0.14095743]
[1768700465210,1.33085635,3305.6,3304.7,0.14095743]
[1768700465512,1.33085635,3305.5,3304.7,0.14095743]
[1768700465717,0.27080126,3305.4,3304.7,0.14095743]
[1768700465916,3.36472656,3306.0,3304.7,0.14095743]
[1768700466119,1.33073535,3305.9,3304.7,0.14095743]
[1768700466316,1.33073535,3305.8,3304.7,0.14095743]
[1768700466614,1.33073535,3305.7,3304.7,0.14095743]
[1768700466815,1.33073535,3305.6,3304.7,0.14095743]
[1768700467017,1.33073535,3305.5,3304.7,0.14095743]
[1768700467218,3.36472656,3306.0,3304.7,0.14095743]
[1768700467516,1.33063726,3305.9,3304.7,0.14095743]
[1768700467725,1.33063726,3305.8,3304.7,0.14095743]
[1768700468025,1.33063726,3305.7,3304.7,0.14095743]
[1768700468219,1.735,3306.0,3304.7,0.14095743]
[1768700468220,1.33063726,3305.6,3304.7,0.14095743]
[1768700468419,1.33063726,3305.5,3304.7,0.14095743]
[1768700468607,1.735,3306.0,3304.7,0.14095743]
[1768700468804,1.3283373,3305.9,3304.7,0.14095743]
[1768700469020,1.3283373,3305.8,3304.7,0.14095743]
[1768700469316,1.3283373,3305.7,3304.7,0.14095743]
[1768700469520,1.3283373,3305.6,3304.7,0.14095743]
[1768700469823,1.3283373,3305.5,3304.7,0.14095743]
[1768700470007,1.735,3306.0,3304.7,0.14095743]
[1768700470212,1.32828501,3305.9,3304.7,0.14095743]
[1768700470511,1.32828501,3305.8,3304.7,0.14095743]
[1768700470708,1.32828501,3305.7,3304.7,0.14095743]
[1768700470909,1.32828501,3305.6,3304.7,0.14095743]
[1768700471117,1.32828501,3305.5,3304.7,0.14095743]
[1768700471318,1.735,3306.0,3304.7,0.14095743]
[1768700471514,1.32819411,3305.9,3304.7,0.14095743]
[1768700471813,1.32819411,3305.8,3304.7,0.14095743]
[1768700472015,1.32819411,3305.7,3304.7,0.14095743]
[1768700472214,1.32819411,3305.6,3304.7,0.14095743]
[1768700472416,1.32819411,3305.5,3304.7,0.14095743]
[1768700472614,1.735,3306.0,3304.7,0.14095743]
[1768700472906,1.32815875,3305.9,3304.7,0.14095743]
[1768700473111,1.32815875,3305.8,3304.7,0.14095743]
[1768700473410,1.32815875,3305.7,3304.7,0.14095743]
[1768700473611,1.3281513,3305.6,3304.7,0.14095743]
[1768700473811,0.27069986,3305.5,3304.7,0.14095743]
[1768700474024,1.735,3306.0,3304.7,0.14095743]
[1768700474223,1.32811957,3305.9,3304.7,0.14095743]
[1768700474417,1.32811957,3305.8,3304.7,0.14095743]
[1768700474615,1.32811957,3305.7,3304.7,0.14095743]
[1768700474809,1.32811957,3305.6,3304.7,0.14095743]
[1768700475014,1.735,3306.0,3304.7,0.14095743]
[1768700475316,1.32808892,3305.9,3304.7,0.14095743]
[1768700475613,1.32808892,3305.8,3304.7,0.14095743]
[1768700475813,1.32808892,3305.7,3304.7,0.14095743]
[1768700476009,1.32808892,3305.6,3304.7,0.14095743]
[1768700476217,1.735,3306.0,3304.7,0.14095743]
[1768700476417,1.32804315,3305.9,3304.7,0.14095743]
[1768700476619,1.32804315,3305.8,3304.7,0.14095743]
[1768700476814,1.32804315,3305.7,3304.7,0.14095743]
[1768700477125,0.27069295,3305.6,3304.7,0.14095743]
[1768700477324,1.735,3306.0,3304.7,0.14095743]
[1768700477528,1.32786044,3305.9,3304.7,0.14095743]
[1768700477825,1.735,3306.0,3304.7,0.14095743]
[1768700477826,1.32786044,3305.8,3304.7,0.14095743]
[1768700478029,0.27066161,3305.7,3304.7,0.14095743]
[1768700478226,1.735,3306.0,3304.7,0.14095743]
[1768700478428,1.32781818,3305.9,3304.7,0.14095743]
[1768700478614,1.32781818,3305.8,3304.7,0.14095743]
[1768700478819,1.735,3306.0,3304.7,0.14095743]
[1768700478820,0.27064362,3305.7,3304.7,0.14095743]
[1768700479019,1.735,3306.0,3304.7,0.14095743]
[1768700479219,1.32781817,3305.9,3304.7,0.14095743]
[1768700479419,1.32781817,3305.8,3304.7,0.14095743]
[1768700479622,0.27064362,3305.7,3304.7,0.14095743]
[1768700479819,1.735,3306.0,3304.7,0.14095743]
[1768700480030,1.32792916,3305.9,3304.7,0.14095743]
[1768700480321,1.32792916,3305.8,3304.7,0.14095743]
[1768700480522,0.27066587,3305.7,3304.7,0.14095743]
[1768700480724,1.735,3306.0,3304.7,0.14095743]
[1768700480928,1.32808519,3305.9,3304.7,0.14095743]
[1768700481120,1.32808519,3305.8,3304.7,0.14095743]
[1768700481320,0.27069874,3305.7,3304.7,0.14095743]
[1768700481524,1.735,3306.0,3304.7,0.14095743]
[1768700481724,1.32827031,3305.9,3304.7,0.14095743]
[1768700482022,1.32827031,3305.8,3304.7,0.14095743]
[1768700482225,0.27073609,3305.7,3304.7,0.14095743]
[1768700482424,1.735,3306.0,3304.7,0.14095743]
[1768700482624,1.32850433,3305.9,3304.7,0.14095743]
[1768700482826,1.32850433,3305.8,3304.7,0.14095743]
[1768700483025,1.32850433,3305.7,3304.7,0.14095743]
[1768700483225,1.735,3306.0,3304.7,0.14095743]
[1768700483434,1.32878341,3305.9,3304.7,0.14095743]
[1768700483624,1.32878341,3305.8,3304.7,0.14095743]
[1768700483825,1.32878341,3305.7,3304.7,0.14095743]
[1768700484023,1.735,3306.0,3304.7,0.14095743]
[1768700484222,1.32878426,3305.9,3304.7,0.14095743]
[1768700484433,1.32878426,3305.8,3304.7,0.14095743]
[1768700484627,1.32878426,3305.7,3304.7,0.14095743]
[1768700484931,0.27083959,3305.6,3304.7,0.14095743]
[1768700485131,1.735,3306.0,3304.7,0.14095743]
[1768700485332,1.32923183,3305.9,3304.7,0.14095743]
[1768700485535,1.32923183,3305.8,3304.7,0.14095743]
[1768700485732,1.32923183,3305.7,3304.7,0.14095743]
[1768700486032,0.27100001,3305.6,3304.7,0.14095743]
[1768700486234,1.735,3306.0,3304.7,0.14095743]
[1768700486433,1.33025909,3305.9,3304.7,0.14095743]
[1768700486624,1.33025909,3305.8,3304.7,0.14095743]
[1768700486825,1.33025909,3305.7,3304.7,0.14095743]
[1768700487035,1.33025909,3305.6,3304.7,0.14095743]
[1768700487232,0.27120237,3305.5,3304.7,0.14095743]
[1768700487430,1.734,3305.8,3304.7,0.14095743]
[1768700487729,1.33055378,3305.7,3304.7,0.14095743]
[1768700487924,1.33055378,3305.6,3304.7,0.14095743]
[1768700488123,0.27120261,3305.5,3304.7,0.14095743]
[1768700488332,1.734,3305.8,3304.7,0.14095743]
[1768700488527,1.33091217,3305.7,3304.7,0.14095743]
[1768700488726,1.33091217,3305.6,3304.7,0.14095743]
[1768700488925,0.27127551,3305.5,3304.7,0.14095743]
[1768700489125,1.734,3305.8,3304.7,0.14095743]
[1768700489331,1.33090048,3305.7,3304.7,0.14095743]
[1768700489531,1.33090048,3305.6,3304.7,0.14095743]
[1768700489732,0.27127053,3305.5,3304.7,0.14095743]
[1768700489935,1.734,3305.8,3304.7,0.14095743]
[1768700490135,1.3308878,3305.7,3304.7,0.14095743]
[1768700490336,1.3308878,3305.6,3304.7,0.14095743]
[1768700490537,0.27127054,3305.5,3304.7,0.14095743]
[1768700490729,1.734,3305.8,3304.7,0.14095743]
[1768700491026,1.33089463,3305.7,3304.7,0.14095743]
[1768700491227,1.33089463,3305.6,3304.7,0.14095743]
[1768700491427,0.27127289,3305.5,3304.7,0.14095743]
[1768700491627,1.734,3305.8,3304.7,0.14095743]
[1768700491826,1.33088353,3305.7,3304.7,0.14095743]
[1768700492034,1.33088353,3305.6,3304.7,0.14095743]
[1768700492227,0.27127052,3305.5,3304.7,0.14095743]
[1768700492428,1.734,3305.8,3304.7,0.14095743]
[1768700492631,1.33087294,3305.7,3304.7,0.14095743]
[1768700492834,1.33087294,3305.6,3304.7,0.14095743]
[1768700493036,0.27126862,3305.5,3304.7,0.14095743]
[1768700493224,1.734,3305.8,3304.7,0.14095743]
[1768700493429,1.33086387,3305.7,3304.7,0.14095743]
[1768700493628,1.33086387,3305.6,3304.7,0.14095743]
[1768700493829,0.27126678,3305.5,3304.7,0.14095743]
[1768700494130,1.734,3305.8,3304.7,0.14095743]
[1768700494329,1.33085501,3305.7,3304.7,0.14095743]
[1768700494535,1.33085501,3305.6,3304.7,0.14095743]
[1768700494843,0.27126504,3305.5,3304.7,0.14095743]
[1768700495030,1.734,3305.8,3304.7,0.14095743]
[1768700495231,1.33085232,3305.7,3304.7,0.14095743]
[1768700495429,1.33085232,3305.6,3304.7,0.14095743]
[1768700495636,0.27126389,3305.5,3304.7,0.14095743]
[1768700495836,1.734,3305.8,3304.7,0.14095743]
[1768700496029,1.33080781,3305.7,3304.7,0.14095743]
[1768700496231,1.33080781,3305.6,3304.7,0.14095743]
[1768700496437,3.31145935,3306.2,3304.7,0.14095743]
[1768700496637,1.05968656,3306.1,3304.7,0.14095743]
[1768700496936,1.05968656,3306.0,3304.7,0.14095743]
[1768700497236,1.05968656,3305.9,3304.7,0.14095743]
[1768700497535,1.734,3306.2,3304.7,0.14095743]
[1768700497736,1.05757078,3306.1,3304.7,0.14095743]
[1768700497937,1.05757078,3306.0,3304.7,0.14095743]
[1768700498136,1.05757078,3305.9,3304.7,0.14095743]
[1768700498435,1.734,3306.2,3304.7,0.14095743]
[1768700498623,1.05740857,3306.1,3304.7,0.14095743]
[1768700498827,1.05740857,3306.0,3304.7,0.14095743]
[1768700499029,1.05740857,3305.9,3304.7,0.14095743]
[1768700499339,1.734,3306.2,3304.7,0.14095743]
[1768700499640,1.05717521,3306.1,3304.7,0.14095743]
[1768700499839,1.05717521,3306.0,3304.7,0.14095743]
[1768700500137,1.05717521,3305.9,3304.7,0.14095743]
[1768700500339,1.734,3306.2,3304.7,0.14095743]
[1768700500539,1.05705579,3306.1,3304.7,0.14095743]
[1768700500732,1.05705579,3306.0,3304.7,0.14095743]
[1768700500928,1.05705579,3305.9,3304.1,1.12873339]
[1768700501130,1.83792727,3306.2,3304.3,0.1344631]
[1768700501333,1.05700577,3306.1,3304.3,0.1344631]
[1768700501535,1.05700577,3306.0,3304.3,0.1344631]
[1768700501841,1.05700577,3305.9,3304.3,0.1344631]
[1768700502044,1.83792727,3306.2,3304.3,0.1344631]
[1768700502242,1.05697775,3306.1,3304.3,0.1344631]
[1768700502540,1.05697775,3306.0,3304.3,0.1344631]
[1768700502739,1.05697775,3305.9,3304.3,0.1344631]
[1768700502939,1.83792727,3306.2,3304.3,0.1344631]
[1768700503143,1.0569614,3306.1,3304.3,0.1344631]
[1768700503333,1.0569614,3306.0,3304.3,0.1344631]
[1768700503535,1.0569614,3305.9,3304.3,0.1344631]
[1768700503733,1.0569614,3305.8,3304.3,0.1344631]
[1768700503936,1.83792727,3306.2,3304.6,0.1344631]
[1768700504138,1.05695463,3306.1,3304.6,0.1344631]
[1768700504338,1.05695463,3306.0,3304.6,0.1344631]
[1768700504543,1.05695463,3305.9,3304.6,0.1344631]
[1768700504734,1.05695463,3305.8,3304.6,0.1344631]
[1768700504935,1.734,3306.1,3304.6,0.1344631]
[1768700505135,1.05695133,3306.0,3304.6,0.1344631]
[1768700505338,1.05695133,3305.9,3304.6,0.1344631]
[1768700505642,1.05695133,3305.8,3304.6,0.1344631]
[1768700505844,1.734,3306.1,3304.6,0.1344631]
[1768700506035,1.05695972,3306.0,3304.6,0.1344631]
[1768700506240,1.05695972,3305.9,3304.9,1.11182649]
[1768700506439,1.05695972,3305.8,3304.9,1.11182649]
[1768700506638,1.88528,3306.3,3304.9,1.11182649]
[1768700506841,1.05691326,3306.2,3304.9,1.11182649]
[1768700507041,1.05691326,3306.1,3304.9,0.1344631]
[1768700507242,1.05691326,3306.0,3304.9,0.1344631]
[1768700507441,1.05691326,3305.9,3304.9,0.1344631]
[1768700507738,1.05691326,3305.8,3304.9,0.1344631]
[1768700507941,1.88528,3306.3,3304.9,0.1344631]
[1768700508142,1.05680082,3306.2,3304.9,0.1344631]
[1768700508329,1.32579476,3306.1,3304.9,0.1344631]
[1768700508531,1.32579476,3306.0,3304.9,0.1344631]
[1768700508733,1.88528,3306.3,3304.9,0.1344631]
[1768700508734,1.32579476,3305.9,3304.9,0.1344631]
[1768700508946,1.32579476,3305.8,3304.9,0.1344631]
[1768700509132,1.88528,3306.3,3304.9,0.1344631]
[1768700509336,1.32575421,3306.2,3304.9,0.1344631]
[1768700509536,1.32575421,3306.1,3304.9,0.1344631]
[1768700509732,1.32575421,3306.0,3304.9,0.1344631]
[1768700509942,1.32575421,3305.9,3304.9,0.1344631]
[1768700510144,1.32575421,3305.8,3304.9,0.1344631]
[1768700510338,1.88528,3306.3,3304.9,0.1344631]
[1768700510538,1.32573186,3306.2,3304.9,0.1344631]
[1768700510739,1.32573186,3306.1,3304.9,0.1344631]
[1768700510941,1.32573186,3306.0,3304.9,0.1344631]
[1768700511140,1.32573186,3305.9,3304.9,0.1344631]
[1768700511342,1.32573186,3305.8,3304.9,0.1344631]
[1768700511647,1.88528,3306.3,3304.9,0.1344631]
[1768700511846,1.32572778,3306.2,3304.9,0.1344631]
[1768700512040,1.32572778,3306.1,3304.9,0.1344631]
[1768700512245,1.32572778,3306.0,3304.9,0.1344631]
[1768700512439,1.32572778,3305.9,3304.9,0.1344631]
[1768700512640,1.32572778,3305.8,3304.9,0.1344631]
[1768700512933,1.88528,3306.3,3304.9,0.1344631]
[1768700513137,1.325729,3306.2,3304.9,0.1344631]
[1768700513341,1.325729,3306.1,3304.9,0.1344631]
[1768700513538,1.325729,3306.0,3304.9,0.1344631]
[1768700513734,1.325729,3305.9,3304.9,0.1344631]
[1768700513940,1.88528,3306.3,3304.9,0.1344631]
[1768700514141,1.32573074,3306.2,3304.9,0.1344631]
[1768700514339,1.32573074,3306.1,3304.9,0.1344631]
[1768700514540,1.32573074,3306.0,3304.9,0.1344631]
[1768700514741,1.32573074,3305.9,3304.9,0.1344631]
[1768700514942,1.88528,3306.3,3304.9,0.1344631]
[1768700515143,1.32574765,3306.2,3304.9,0.1344631]
[1768700515339,1.32574765,3306.1,3304.9,0.1344631]
[1768700515653,1.32574765,3306.0,3304.9,0.1344631]
[1768700515851,1.32574765,3305.9,3304.9,0.1344631]
[1768700516053,1.88528,3306.3,3304.9,0.1344631]
[1768700516256,1.32577156,3306.2,3304.9,0.1344631]
[1768700516455,1.32577156,3306.1,3304.9,0.1344631]
[1768700516647,1.32577156,3306.0,3304.9,0.1344631]
[1768700516844,1.32577156,3305.9,3304.9,0.1344631]
[1768700517045,1.88528,3306.3,3304.9,0.1344631]
[1768700517349,1.32579253,3306.2,3304.9,0.1344631]
[1768700517543,1.32579253,3306.1,3304.9,0.1344631]
[1768700517853,1.32579253,3306.0,3304.9,0.1344631]
[1768700518150,1.32579253,3305.9,3304.9,0.1344631]
[1768700518353,1.88528,3306.3,3304.9,0.1344631]
[1768700518553,1.32583336,3306.2,3304.9,0.1344631]
[1768700518746,1.32583336,3306.1,3304.9,0.1344631]
[1768700519043,1.32583336,3306.0,3304.9,0.1344631]
[1768700519246,1.32583336,3305.9,3304.9,0.1344631]
[1768700519443,1.88528,3306.3,3304.9,0.1344631]
[1768700519643,1.32588663,3306.2,3304.9,0.1344631]
[1768700519848,1.32588663,3306.1,3304.9,0.1344631]
[1768700520148,1.32588663,3306.0,3304.9,0.1344631]
[1768700520451,0.26900855,3305.9,3304.9,0.1344631]
[1768700520652,1.88528,3306.3,3304.9,0.1344631]
[1768700520849,1.32598172,3306.2,3304.9,0.1344631]
[1768700521051,1.32598172,3306.1,3304.9,0.1344631]
[1768700521354,1.32598172,3306.0,3305.1,0.97702869]
[1768700521549,0.26902694,3305.9,3305.1,0.97702869]
[1768700521851,1.734,3306.3,3305.1,0.97702869]
[1768700522054,1.32607374,3306.2,3305.1,0.97702869]
[1768700522254,1.32607374,3306.1,3305.1,0.97702869]
[1768700522444,1.32607374,3306.0,3305.1,0.97702869]
[1768700522738,0.26904566,3305.9,3305.1,0.97702869]
[1768700522944,1.734,3306.3,3305.1,0.97702869]
[1768700523243,1.32616981,3306.2,3305.1,0.97702869]
[1768700523443,1.32616981,3306.1,3305.1,0.97702869]
[1768700523645,1.32616981,3306.0,3305.1,0.97702869]
[1768700523842,0.26906523,3305.9,3305.1,0.97702869]
[1768700524043,1.734,3306.3,3305.1,0.97702869]
[1768700524243,1.32632512,3306.2,3305.1,0.97702869]
[1768700524447,1.32632512,3306.1,3305.1,0.97702869]
[1768700524648,1.32632512,3306.0,3305.1,0.97702869]
[1768700524947,0.269124,3305.9,3305.1,0.97702869]
[1768700525149,1.734,3306.3,3305.1,0.97702869]
[1768700525348,1.32667342,3306.2,3305.1,0.97702869]
[1768700525548,1.32667342,3306.1,3305.1,0.97702869]
[1768700525849,1.32667342,3306.0,3305.1,0.97702869]
[1768700526150,1.32667342,3305.9,3305.1,0.97702869]
[1768700526448,0.2691712,3305.8,3305.1,0.97702869]
[1768700526648,1.734,3306.3,3305.1,0.97702869]
[1768700526848,1.32702046,3306.2,3305.1,0.97702869]
[1768700527044,1.32702046,3306.1,3305.1,0.97702869]
[1768700527244,1.32702046,3306.0,3305.1,0.97702869]
[1768700527449,1.32702046,3305.9,3305.1,0.97702869]
[1768700527646,1.734,3306.3,3305.1,0.97702869]
[1768700527847,1.32742987,3306.2,3305.1,0.97702869]
[1768700528146,1.32742987,3306.1,3305.1,0.97702869]
[1768700528346,1.32742987,3306.0,3305.1,0.97702869]
[1768700528547,1.32742987,3305.9,3305.1,0.97702869]
[1768700528753,1.734,3306.3,3305.1,0.97702869]
[1768700528948,1.32740381,3306.2,3305.1,0.97702869]
[1768700529247,1.32740381,3306.1,3305.1,0.97702869]
[1768700529446,1.32740381,3306.0,3305.1,0.97702869]
[1768700529653,1.32740381,3305.9,3305.1,0.97702869]
[1768700529847,1.734,3306.3,3305.1,0.97702869]
[1768700530048,1.32738473,3306.2,3305.1,0.97702869]
[1768700530247,1.32738473,3306.1,3305.1,0.97702869]
[1768700530450,1.32738473,3306.0,3305.1,0.97702869]
[1768700530755,1.32738473,3305.9,3305.1,0.97702869]
[1768700530946,1.734,3306.3,3305.1,0.97702869]
[1768700531253,1.32736783,3306.2,3305.1,0.97702869]
[1768700531446,1.32736783,3306.1,3305.1,0.97702869]
[1768700531646,1.32736783,3306.0,3305.1,0.97702869]
[1768700531956,1.327392,3305.9,3305.1,0.97702869]
[1768700532156,0.26924849,3305.8,3305.1,0.97702869]
[1768700532363,1.734,3306.3,3305.1,0.97702869]
[1768700532653,1.32758902,3306.2,3305.1,0.97702869]
[1768700532854,1.32758902,3306.1,3305.1,0.97702869]
[1768700533154,1.32758902,3306.0,3305.1,0.97702869]
[1768700533354,1.32758902,3305.9,3305.1,0.97702869]
[1768700533556,0.26926954,3305.8,3305.1,0.97702869]
[1768700533854,1.734,3306.3,3305.1,0.97702869]
[1768700534059,1.32761274,3306.2,3305.1,0.97702869]
[1768700534247,1.32761274,3306.1,3305.1,0.97702869]
[1768700534447,1.32761274,3306.0,3305.1,0.97702869]
[1768700534749,1.32761274,3305.9,3305.1,0.97702869]
[1768700534947,0.26927593,3305.8,3305.1,0.97702869]
[1768700535148,1.734,3306.3,3305.1,0.97702869]
[1768700535441,1.32761861,3306.2,3305.1,0.97702869]
[1768700535646,1.32761861,3306.1,3305.1,0.97702869]
[1768700535842,1.32761861,3306.0,3305.1,0.97702869]
[1768700536144,1.32761861,3305.9,3305.1,0.97702869]
[1768700536346,0.26927741,3305.8,3305.1,0.97702869]
[1768700536542,1.734,3306.3,3305.1,0.97702869]
[1768700536755,1.32762355,3306.2,3305.1,0.97702869]
[1768700536946,1.32762355,3306.1,3305.1,0.97702869]
[1768700537143,1.32762355,3306.0,3305.1,0.97702869]
[1768700537344,1.32762355,3305.9,3305.1,0.97702869]
[1768700537542,0.26927933,3305.8,3304.4,0.28491015]
[1768700537843,2.71102869,3306.3,3304.9,0.97702869]
[1768700538142,1.32811651,3306.2,3304.9,0.97702869]
[1768700538342,1.32811651,3306.1,3304.9,0.97702869]
[1768700538547,1.32811651,3306.0,3304.9,0.97702869]
[1768700538745,1.32811651,3305.9,3304.9,0.97702869]
[1768700538949,0.26937977,3305.8,3304.9,0.97702869]
[1768700539149,2.71102869,3306.3,3304.9,0.97702869]
[1768700539347,1.32815929,3306.2,3304.9,0.97702869]
[1768700539562,1.32815929,3306.1,3304.9,0.97702869]
[1768700539747,1.32815929,3306.0,3304.9,0.97702869]
[1768700539951,1.32815929,3305.9,3304.9,0.97702869]
[1768700540152,0.26938876,3305.8,3304.9,0.97702869]
[1768700540349,2.71102869,3306.3,3304.9,0.97702869]
[1768700540653,1.32816907,3306.2,3304.9,0.97702869]
[1768700540951,1.32816907,3306.1,3304.9,0.97702869]
[1768700541250,1.32816907,3306.0,3304.9,0.97702869]
[1768700541452,1.32816907,3305.9,3304.9,0.97702869]
[1768700541647,0.26939231,3305.8,3304.9,0.97702869]
[1768700541849,2.71102869,3306.3,3304.9,0.97702869]
[1768700542063,1.32818349,3306.2,3304.9,0.97702869]
[1768700542268,1.32818349,3306.1,3304.9,0.97702869]
[1768700542560,1.32818349,3306.0,3304.9,0.97702869]
[1768700542762,1.32818349,3305.9,3304.9,0.97702869]
[1768700542962,0.2693956,3305.8,3304.9,0.97702869]
[1768700543161,2.71102869,3306.3,3304.9,0.97702869]
[1768700543362,1.32822196,3306.2,3304.9,0.97702869]
[1768700543664,1.32822196,3306.1,3304.9,0.97702869]
[1768700543966,1.32822196,3306.0,3304.9,0.97702869]
[1768700544158,1.32822196,3305.9,3304.9,0.97702869]
[1768700544355,0.26940327,3305.8,3304.9,0.97702869]
[1768700544652,2.71102869,3306.3,3304.9,0.97702869]
[1768700544853,1.32827132,3306.2,3304.9,0.97702869]
[1768700545152,1.32827132,3306.1,3304.9,0.97702869]
[1768700545349,1.32827132,3306.0,3304.9,0.97702869]
[1768700545548,1.32827132,3305.9,3304.9,0.97702869]
[1768700545752,0.26941133,3305.8,3304.9,0.97702869]
[1768700545960,2.71102869,3306.3,3304.9,0.97702869]
[1768700546160,1.32832593,3306.2,3304.9,0.97702869]
[1768700546361,1.32832593,3306.1,3304.9,0.97702869]
[1768700546563,1.32832593,3306.0,3304.9,0.97702869]
[1768700546857,1.32832593,3305.9,3304.9,0.97702869]
[1768700547063,0.26941853,3305.8,3304.9,0.97702869]
[1768700547260,2.71102869,3306.3,3304.9,0.97702869]
[1768700547455,1.32839746,3306.2,3304.9,0.97702869]
[1768700547654,1.32839746,3306.1,3304.9,0.97702869]
[1768700547862,1.32839746,3306.0,3304.9,0.97702869]
[1768700548054,1.32839746,3305.9,3304.9,0.97702869]
[1768700548254,0.26943321,3305.8,3304.9,0.97702869]
[1768700548467,2.71102869,3306.3,3304.9,0.97702869]
[1768700548666,1.32843704,3306.2,3304.9,0.97702869]
[1768700548961,1.32843704,3306.1,3304.9,0.97702869]
[1768700549161,1.32843704,3306.0,3304.9,0.97702869]
[1768700549361,1.32843704,3305.9,3304.9,0.97702869]
[1768700549565,0.26944126,3305.8,3304.9,0.97702869]
[1768700549762,2.71102869,3306.3,3304.9,0.97702869]
[1768700549964,1.32809904,3306.2,3304.9,0.97702869]
[1768700550162,1.32809904,3306.1,3304.9,0.97702869]
[1768700550354,1.32809904,3306.0,3304.9,0.97702869]
[1768700550554,1.32809904,3305.9,3304.9,0.97702869]
[1768700550754,0.26937275,3305.8,3304.9,0.97702869]
[1768700550954,2.71102869,3306.3,3304.9,1.11891112]
[1768700551165,1.32809913,3306.2,3304.9,1.11891112]
[1768700551462,1.32809913,3306.1,3304.9,1.11891112]
[1768700551664,1.32809913,3306.0,3304.9,1.11891112]
[1768700551964,1.32809913,3305.9,3304.9,1.11891112]
[1768700552168,0.26937272,3305.8,3304.9,1.11891112]
[1768700552362,2.71102869,3306.3,3304.9,1.11891112]
[1768700552564,1.32809705,3306.2,3304.9,1.11891112]
[1768700552761,1.32809705,3306.1,3304.9,1.11891112]
[1768700552962,1.32809705,3306.0,3304.9,1.11891112]
[1768700553261,1.32809705,3305.9,3304.9,1.11891112]
[1768700553459,0.26937184,3305.8,3304.9,1.11891112]
[1768700553659,1.05872447,3305.7,3304.9,1.11891112]
[1768700553868,1.32809695,3305.6,3304.9,1.11891112]
[1768700554070,1.62972656,3306.2,3304.9,1.11891112]
[1768700554269,0.26937252,3306.1,3304.9,1.11891112]